bitfinex/quotes_SOLUSD_20250507
["timestamp","ask_amount","ask_price","bid_price","bid_amount"]
[1746576001854,19.39299071,147.12,147.03,0.14216157]
[1746576005248,19.39299071,147.12,147.05,0.14216157]
[1746576005545,1.5601,147.2,147.07,0.14216157]
[1746576006055,139.2588,147.25,147.09,18.79181043]
[1746576006256,137.7,147.24,147.1,56.8982135]
[1746576006943,137.7,147.23,147.11,0.14216157]
[1746576007138,10.68738929,147.22,147.11,0.14216157]
[1746576007346,137.7,147.21,147.11,0.14216157]
[1746576007956,137.7,147.21,147.13,0.14216157]
[1746576008937,137.7,147.21,147.14,6.79624847]
[1746576009140,137.7,147.21,147.15,16.4]
[1746576009836,137.7,147.21,147.16,0.14216157]
[1746576011071,139.2588,147.25,147.17,23.78202078]
[1746576011560,18.64964886,147.24,147.17,6.79486308]
[1746576012863,25.44166511,147.24,147.16,6.79532481]
[1746576013162,137.7,147.23,147.16,6.79532481]
[1746576013370,156.34964886,147.22,147.15,23.19563455]
[1746576013658,137.7,147.21,147.15,23.19563455]
[1746576014160,18.64964886,147.2,147.15,16.4]
[1746576014870,6.7939398,147.19,147.15,16.4]
[1746576015040,144.4939398,147.19,147.15,16.4]
[1746576015666,144.4939398,147.19,147.11,16.38]
[1746576015844,18.64964886,147.17,147.11,23.17763442]
[1746576016565,18.64964886,147.17,147.11,16.38]
[1746576016566,18.64964886,147.15,147.11,16.38]
[1746576016761,18.64964886,147.15,147.07,23.17927739]
[1746576016762,137.7,147.14,147.07,23.17927739]
[1746576017067,18.64964886,147.11,147.01,6.80225834]
[1746576017267,18.64964886,147.09,147.01,6.80225834]
[1746576017484,137.7,147.08,147.01,6.80225834]
[1746576017970,6.79948323,147.07,146.99,17.00698884]
[1746576019069,6.79948323,147.07,147.0,32.94]
[1746576020144,137.7,147.08,147.01,0.14216157]
[1746576020865,137.7,147.11,147.01,18.79181043]
[1746576021244,137.7,147.11,147.03,0.14216157]
[1746576021753,137.7,147.11,147.05,0.14216157]
[1746576021947,137.7,147.11,147.06,33.02]
[1746576022265,18.64964886,147.09,147.02,39.86179567]
[1746576022456,18.64964886,147.06,146.98,6.80364675]
[1746576022942,6.3542,147.07,146.98,6.80364675]
[1746576023143,139.2389,147.08,146.99,0.14216157]
[1746576023346,139.2389,147.08,147.0,6.80272108]
[1746576025269,18.64964886,147.07,147.0,6.80272108]
[1746576025466,18.64964886,147.07,146.98,23.81276363]
[1746576027161,137.7,147.08,146.99,0.14216157]
[1746576027363,137.7,147.08,147.0,16.82]
[1746576027555,137.7,147.08,147.01,40.20790421]
[1746576027943,137.7,147.08,147.02,0.14216157]
[1746576028152,137.7,147.08,147.03,6.6232]
[1746576028356,137.7,147.14,147.04,0.14216157]
[1746576028557,137.7,147.13,147.05,16.84]
[1746576028758,137.7,147.13,147.06,16.4]
[1746576029463,137.7,147.13,147.07,6.79948323]
[1746576030369,18.64964886,147.12,147.06,23.19985063]
[1746576032381,137.7,147.13,147.06,23.19985063]
[1746576032582,137.7,147.13,147.07,0.14216157]
[1746576032967,137.7,147.16,147.07,0.14216157]
[1746576033152,137.7,147.16,147.07,1.69246157]
[1746576034384,6.79255535,147.22,147.09,0.14216157]
[1746576034590,6.79255535,147.22,147.11,0.14216157]
[1746576034591,137.7,147.21,147.11,0.14216157]
[1746576034766,137.7,147.21,147.13,0.14216157]
[1746576035588,6.79347826,147.2,147.13,6.93845283]
[1746576036086,144.49320651,147.21,147.13,6.93845283]
[1746576038296,18.64964886,147.2,147.12,16.4]
[1746576038589,18.64964886,147.2,147.12,23.19711454]
[1746576039187,137.7,147.19,147.12,23.19711454]
[1746576039570,6.79440141,147.18,147.12,16.4]
[1746576040184,23.78040494,147.18,147.12,16.4]
[1746576040387,23.78040494,147.18,147.02,6.80179567]
[1746576040388,0.14216157,147.14,147.02,6.80179567]
[1746576040592,18.64964886,147.12,146.99,6.80318389]
[1746576040795,16.96,147.11,146.99,23.81114361]
[1746576041097,18.64964886,147.1,146.99,6.80318389]
[1746576041787,23.79495546,147.09,146.99,6.80318389]
[1746576047705,18.64964886,147.07,146.99,6.80318389]
[1746576047894,18.64964886,147.06,146.99,6.80318389]
[1746576048201,18.64964886,147.06,146.98,42.82]
[1746576048902,18.64964886,147.06,146.98,49.62356344]
[1746576050099,137.7,147.07,147.01,26.0]
[1746576050985,18.64964886,147.06,146.98,23.62356344]
[1746576052505,6.80040802,147.05,146.98,23.62356344]
[1746576052697,6.80040802,147.05,146.98,40.72356344]
[1746576052899,163.7,147.07,146.99,0.14216157]
[1746576053598,137.7,147.1,147.03,6.467]
[1746576053794,143.704,147.14,147.05,0.14216157]
[1746576054000,26.0,147.13,147.05,0.14216157]
[1746576054205,18.64964886,147.13,147.05,0.14216157]
[1746576054781,6.79683906,147.13,147.06,6.7999456]
[1746576054988,32.79683906,147.13,147.06,6.7999456]
[1746576055189,6.79683906,147.13,147.06,6.7999456]
[1746576055592,32.79683906,147.13,147.06,6.7999456]
[1746576056299,26.0,147.13,147.06,6.7999456]
[1746576056500,32.79684438,147.13,147.06,6.7999456]
[1746576057412,26.0,147.13,147.07,0.14216157]
[1746576058319,32.79685811,147.13,147.07,0.14216157]
[1746576058517,32.79685811,147.13,147.06,6.7999456]
[1746576060410,6.79624847,147.14,147.06,6.7999456]
[1746576060716,32.79624847,147.14,147.06,6.7999456]
[1746576061519,6.79624847,147.14,147.07,0.14216157]
[1746576061815,6.79596803,147.15,147.07,0.14216157]
[1746576061994,32.79548498,147.16,147.07,0.14216157]
[1746576062190,6.79548498,147.16,147.09,27.6399]
[1746576062412,18.64964886,147.15,147.1,16.82]
[1746576062618,6.79624847,147.14,147.1,16.82]
[1746576063318,26.0,147.13,147.1,16.82]
[1746576063497,6.79624847,147.14,147.1,16.82]
[1746576063697,6.79596826,147.15,147.1,16.82]
[1746576064627,18.64964886,147.14,147.1,16.82]
[1746576064801,18.64964886,147.14,147.07,6.79941835]
[1746576064997,156.34964886,147.14,147.07,6.79941835]
[1746576066727,144.49659635,147.14,147.07,6.79941835]
[1746576066907,137.7,147.14,147.08,0.14216157]
[1746576067107,137.7,147.14,147.09,1.5497]
[1746576068225,6.79496772,147.17,147.1,0.14216157]
[1746576068402,6.79496772,147.17,147.11,17.06]
[1746576068909,6.79496772,147.17,147.12,6.79717237]
[1746576069723,6.79496772,147.17,147.11,23.85747154]
[1746576070230,32.79455516,147.18,147.11,23.85747154]
[1746576070420,26.0,147.18,147.12,0.14216157]
[1746576070730,137.7,147.19,147.12,0.14216157]
[1746576071039,137.7,147.19,147.13,6.79671039]
[1746576071409,137.7,147.19,147.14,0.14216157]
[1746576072837,137.7,147.19,147.12,0.14216157]
[1746576073035,144.49394476,147.19,147.12,6.93933394]
[1746576073423,144.49394476,147.19,147.11,40.91746561]
[1746576080745,144.49394476,147.19,147.12,0.14216157]
[1746576082745,144.49394476,147.19,147.11,40.91746561]
[1746576087255,144.49394476,147.19,147.12,6.938886]
[1746576088856,137.7,147.19,147.12,23.93181694]
[1746576089240,144.49405598,147.19,147.12,23.93181694]
[1746576090354,144.49405598,147.19,147.12,6.938886]
[1746576090530,144.49405598,147.19,147.12,6.79672443]
[1746576092156,137.7,147.19,147.13,0.14216157]
[1746576093354,6.79327923,147.21,147.13,0.14216157]
[1746576096057,6.79327923,147.21,147.14,6.79624847]
[1746576096759,44.64964886,147.22,147.15,0.14216157]
[1746576096941,32.79271792,147.22,147.16,17.14]
[1746576098152,32.79271792,147.22,147.17,6.79486308]
[1746576098955,26.0,147.22,147.17,6.79486308]
[1746576099163,137.7,147.23,147.18,0.14216157]
[1746576099369,18.64964886,147.21,147.16,17.14]
[1746576099535,26.0,147.18,147.12,17.12]
[1746576099735,156.34964886,147.17,147.12,17.12]
[1746576100237,6.79532481,147.16,147.12,17.12]
[1746576100570,32.2913,147.12,147.03,17.12]
[1746576100750,18.64964886,147.11,147.03,17.12]
[1746576101435,163.7,147.12,147.03,17.12]
[1746576101640,137.7,147.12,147.06,26.0]
[1746576102571,137.7,147.12,147.06,6.7999456]
[1746576102868,18.64964886,147.11,147.05,17.34]
[1746576103844,18.64964886,147.11,147.05,24.14023993]
[1746576105061,25.44738455,147.11,147.05,6.80023993]
[1746576105266,44.64964886,147.07,147.03,17.12]
[1746576105757,137.7,147.06,147.03,17.12]
[1746576105949,137.7,147.06,147.03,23.92117729]
[1746576106456,137.7,147.09,147.03,40.92450994]
[1746576106766,157.94944886,147.08,146.99,17.42]
[1746576106944,18.64964886,147.06,146.99,17.42]
[1746576107345,137.7,147.07,147.0,6.80272108]
[1746576107561,18.64964886,147.06,147.0,6.80272108]
[1746576108551,137.7,147.07,147.0,6.80272108]
[1746576108753,137.7,147.07,147.0,23.8095238]
[1746576110145,137.7,147.07,147.02,6.80179567]
[1746576110348,137.7,147.07,147.03,17.14]
[1746576111482,25.44774539,147.1,147.03,17.14]
[1746576112977,25.44774539,147.1,147.03,23.94122379]
[1746576114373,25.44774539,147.1,147.03,17.14]
[1746576114566,26.0,147.08,147.03,17.14]
[1746576114947,18.64964886,147.07,147.03,17.14]
[1746576115146,137.7,147.06,147.03,17.14]
[1746576115572,18.64964886,147.05,146.99,17.14]
[1746576115772,137.7,147.04,146.99,17.14]
[1746576116380,137.7,147.04,146.99,23.94298434]
[1746576117275,144.50101625,147.04,146.99,23.94298434]
[1746576117574,137.7,147.04,146.99,23.94298434]
[1746576118578,144.50094051,147.04,146.99,17.14]
[1746576120358,144.50094051,147.04,146.97,14.95790603]
[1746576120884,18.64964886,147.03,146.97,14.95790603]
[1746576121055,18.64964886,147.01,146.95,23.94495855]
[1746576121262,18.64964886,147.01,146.95,17.14]
[1746576121485,137.7,147.0,146.95,17.14]
[1746576121669,137.7,146.99,146.95,17.14]
[1746576122987,163.7,146.99,146.95,17.14]
[1746576123158,163.7,146.99,146.95,23.94491183]
[1746576125177,137.7,146.98,146.91,34.29913262]
[1746576125582,137.7,146.98,146.92,6.80642526]
[1746576126501,137.7,146.98,146.92,23.82248842]
[1746576133373,137.7,146.98,146.93,0.14216157]
[1746576133572,137.7,147.02,146.96,8.1151]
[1746576133795,137.7,147.02,146.97,17.52]
[1746576134400,137.7,147.02,146.99,0.14216157]
[1746576134571,137.7,147.06,146.99,0.14216157]
[1746576134780,137.7,147.06,146.99,17.72216157]
[1746576135178,137.7,147.1,147.04,0.14216157]
[1746576135505,137.7,147.1,147.04,35.24216157]
[1746576136392,26.0,147.12,147.04,35.24216157]
[1746576136898,26.0,147.12,147.06,0.14216157]
[1746576137510,32.79719731,147.12,147.05,23.80142808]
[1746576137882,21.46545284,147.06,147.05,23.94358965]
[1746576138080,21.46545284,147.06,147.05,6.80040802]
[1746576138496,137.7,147.1,147.05,6.80040802]
[1746576138686,26.0,147.08,147.04,17.52]
[1746576139084,32.79919195,147.08,147.04,17.52]
[1746576141276,18.64964886,147.07,147.0,24.32239622]
[1746576141895,18.64964886,147.07,147.0,17.52]
[1746576142203,18.64964886,147.07,147.0,24.32257664]
[1746576143100,6.7999456,147.06,147.0,24.32257664]
[1746576143283,6.7999456,147.06,147.0,17.52]
[1746576144490,6.7999456,147.06,147.0,24.32269269]
[1746576144709,25.44930083,147.07,147.0,24.32269269]
[1746576145011,26.0,147.08,147.0,24.32269269]
[1746576145295,137.7,147.09,147.01,0.14216157]
[1746576145891,163.7,147.09,147.01,0.14216157]
[1746576146592,170.49865676,147.09,147.02,6.80179567]
[1746576147107,26.0,147.06,147.01,6.80220929]
[1746576147611,26.0,147.06,147.0,17.52]
[1746576148808,6.80040802,147.05,147.0,17.52]
[1746576150188,156.34964886,147.04,146.97,6.80385365]
[1746576150388,137.7,147.03,146.96,24.32443823]
[1746576150588,137.7,147.02,146.96,24.32443823]
[1746576150788,137.7,147.01,146.96,24.32443823]
[1746576152826,137.7,147.01,146.96,67.33586991]
[1746576153126,137.7,147.04,146.97,0.14216157]
[1746576153914,137.7,147.04,146.99,26.0]
[1746576154103,6.79932514,147.08,147.0,0.14216157]
[1746576154310,137.7,147.07,147.02,6.80179567]
[1746576156003,137.7,147.11,147.03,6.40336157]
[1746576156205,163.7,147.1,147.03,6.40336157]
[1746576156397,163.7,147.1,147.04,6.80087051]
[1746576156612,137.7,147.1,147.04,23.80304678]
[1746576159310,144.49812155,147.1,147.04,6.80087051]
[1746576159510,137.7,147.1,147.04,6.80087051]
[1746576159899,144.49814795,147.1,147.04,6.80087051]
[1746576161224,137.7,147.1,147.04,6.80087051]
[1746576161591,137.7,147.1,147.04,23.80304678]
[1746576161822,137.7,147.1,147.05,17.46]
[1746576162123,137.7,147.1,147.06,17.42]
[1746576163135,144.49810015,147.1,147.06,17.42]
[1746576163419,137.7,147.1,147.06,24.21990294]
[1746576164135,144.49816172,147.1,147.06,17.42]
[1746576168132,144.49880672,147.09,147.06,17.42]
[1746576168425,144.49880672,147.09,147.03,6.80101871]
[1746576168621,137.7,147.08,147.03,6.80101871]
[1746576169718,137.7,147.08,147.04,0.14216157]
[1746576170723,137.7,147.08,147.05,6.80040802]
[1746576172926,137.7,147.08,147.04,6.80087051]
[1746576174028,137.7,147.08,147.04,23.80304678]
[1746576176234,137.7,147.08,147.04,41.20304678]
[1746576179436,137.7,147.08,147.04,24.20087051]
[1746576180734,137.7,147.08,147.05,0.14216157]
[1746576181120,137.7,147.08,147.04,41.20304678]
[1746576181335,137.7,147.08,147.04,24.20087051]
[1746576182140,137.7,147.08,147.05,0.14216157]
[1746576183739,137.7,147.08,147.06,6.7999456]
[1746576183938,137.7,147.13,147.06,23.7998096]
[1746576184142,137.7,147.12,147.06,23.7998096]
[1746576185939,137.7,147.12,147.06,6.7999456]
[1746576186338,144.49720749,147.12,147.06,6.7999456]
[1746576186526,144.49720749,147.12,147.04,24.20044717]
[1746576186527,163.7,147.11,147.04,24.20044717]
[1746576187837,6.79809653,147.1,147.04,24.20044717]
[1746576188040,137.7,147.09,147.04,24.20044717]
[1746576189961,137.7,147.09,147.04,41.20262344]
[1746576190932,137.7,147.09,147.05,0.14216157]
[1746576192250,137.7,147.13,147.06,23.7998096]
[1746576192449,137.7,147.12,147.06,23.7998096]
[1746576193534,137.7,147.12,147.06,6.7999456]
[1746576194057,163.7,147.11,147.06,6.7999456]
[1746576194222,6.79809653,147.1,147.05,6.80022993]
[1746576194421,137.7,147.09,147.05,6.80022993]
[1746576196739,137.7,147.14,147.07,1.71636157]
[1746576196934,137.7,147.14,147.08,17.22]
[1746576197136,163.7,147.14,147.09,17.24]
[1746576198744,163.7,147.14,147.1,6.79809653]
[1746576202858,163.7,147.14,147.1,23.79333786]
[1746576202859,137.7,147.14,147.1,23.79333786]
[1746576204659,137.7,147.19,147.11,0.14216157]
[1746576205855,144.49403218,147.19,147.11,0.14216157]
[1746576206668,144.49403218,147.19,147.12,6.79717237]
[1746576207752,18.64964886,147.18,147.12,6.79717237]
[1746576208068,137.7,147.17,147.12,6.79717237]
[1746576208445,137.7,147.17,147.11,6.79744469]
[1746576208645,26.0,147.13,147.09,17.24]
[1746576208871,26.0,147.13,147.09,24.03849814]
[1746576209071,18.64964886,147.14,147.09,24.03849814]
[1746576209249,137.7,147.13,147.09,24.03849814]
[1746576209876,137.7,147.13,147.09,58.2548949]
[1746576210079,17.22,147.22,147.09,58.2548949]
[1746576210080,137.7,147.17,147.1,0.14216157]
[1746576210372,144.4948869,147.17,147.1,0.14216157]
[1746576210572,137.7,147.16,147.09,41.25849814]
[1746576211145,144.49545283,147.16,147.09,41.25849814]
[1746576212846,144.49545283,147.16,147.09,58.2548949]
[1746576213048,144.49545283,147.16,147.09,41.25849814]
[1746576213249,18.64964886,147.15,147.09,41.25849814]
[1746576214973,6.79624847,147.14,147.09,41.25849814]
[1746576215176,137.7,147.13,147.09,41.25849814]
[1746576215761,137.7,147.13,147.09,58.2548949]
[1746576218581,137.7,147.13,147.09,24.03849814]
[1746576220056,137.7,147.13,147.09,41.0348949]
[1746576220264,137.7,147.13,147.1,0.14216157]
[1746576220917,18.64964886,147.19,147.1,0.14216157]
[1746576221075,137.7,147.18,147.14,23.78686964]
[1746576221405,137.7,147.18,147.14,23.99624847]
[1746576224497,137.7,147.18,147.14,40.98686964]
[1746576225794,137.7,147.21,147.14,40.98686964]
[1746576226904,137.7,147.21,147.15,0.14216157]
[1746576227512,137.7,147.21,147.16,6.79532481]
[1746576227878,137.7,147.21,147.16,23.78363685]
[1746576228100,137.7,147.21,147.17,17.14]
[1746576228301,137.7,147.25,147.18,0.14216157]
[1746576228510,137.7,147.25,147.19,17.18]
[1746576228710,137.7,147.25,147.2,0.14216157]
[1746576230011,137.7,147.25,147.21,6.79301677]
[1746576231087,137.7,147.25,147.2,6.79338244]
[1746576231294,144.49117889,147.25,147.19,31.81339007]
[1746576231589,144.49117889,147.25,147.19,17.18]
[1746576231784,18.64964886,147.24,147.19,17.18]
[1746576232106,6.792094,147.23,147.19,17.18]
[1746576232506,137.7,147.22,147.19,17.18]
[1746576234088,144.49298695,147.22,147.19,17.18]
[1746576234283,137.7,147.21,147.15,17.18]
[1746576234616,137.7,147.2,147.15,17.18]
[1746576236414,137.7,147.2,147.16,6.79532481]
[1746576238619,144.49351785,147.2,147.15,23.97562413]
[1746576240198,137.7,147.19,147.15,23.97562413]
[1746576241414,137.7,147.19,147.16,0.14216157]
[1746576242518,26.0,147.24,147.17,23.78202078]
[1746576242699,26.0,147.24,147.17,40.82202078]
[1746576243190,26.0,147.24,147.18,0.14216157]
[1746576243592,137.7,147.25,147.18,0.14216157]
[1746576244021,163.7,147.28,147.18,0.14216157]
[1746576244194,137.7,147.27,147.18,0.14216157]
[1746576244614,18.64964886,147.26,147.19,23.77878931]
[1746576245211,18.64964886,147.26,147.2,17.18]
[1746576245415,137.7,147.27,147.2,17.18]
[1746576245616,137.7,147.27,147.21,0.14216157]
[1746576246006,137.7,147.27,147.2,17.18]
[1746576246533,144.49034177,147.27,147.2,17.18]
[1746576246825,26.0,147.25,147.2,17.18]
[1746576247032,18.64964886,147.24,147.2,17.18]
[1746576247223,137.7,147.23,147.2,17.18]
[1746576248618,137.7,147.23,147.16,17.18]
[1746576248931,137.7,147.22,147.17,6.79486308]
[1746576250640,137.7,147.22,147.17,23.78202078]
[1746576250811,137.7,147.22,147.18,0.14216157]
[1746576251427,156.34964886,147.29,147.2,0.14216157]
[1746576251633,26.0,147.28,147.21,34.02]
[1746576251832,18.64964886,147.27,147.21,34.02]
[1746576252018,137.7,147.26,147.21,34.02]
[1746576252218,18.64964886,147.27,147.21,34.02]
[1746576252219,182.34964886,147.25,147.21,17.0]
[1746576252535,182.34964886,147.25,147.17,23.79486308]
[1746576252716,18.64964886,147.23,147.17,23.79486308]
[1746576252918,26.0,147.22,147.17,23.79486308]
[1746576253110,156.34964886,147.21,147.17,17.0]
[1746576253619,137.7,147.2,147.17,17.0]
[1746576254122,137.7,147.2,147.17,23.79479087]
[1746576256921,137.7,147.23,147.17,23.79479087]
[1746576257230,137.7,147.23,147.18,6.4577]
[1746576257406,137.7,147.23,147.19,23.77878931]
[1746576260744,163.7,147.27,147.19,23.77878931]
[1746576260920,137.7,147.26,147.19,23.77878931]
[1746576261332,137.7,147.26,147.21,1.6046]
[1746576261647,137.7,147.26,147.22,17.0]
[1746576262715,137.7,147.26,147.23,6.792094]
[1746576274847,137.7,147.29,147.23,6.792094]
[1746576275231,137.7,147.29,147.23,23.772329]
[1746576277146,137.7,147.29,147.25,6.3562]
[1746576277446,137.7,147.29,147.26,0.14216157]
[1746576277624,26.0,147.32,147.27,33.84]
[1746576278926,26.0,147.32,147.27,40.62990098]
[1746576280341,32.78806827,147.32,147.27,40.62990098]
[1746576280549,32.78806827,147.32,147.27,33.84]
[1746576280733,18.64964886,147.31,147.27,33.84]
[1746576280937,6.78886625,147.3,147.27,17.0]
[1746576281630,6.78886625,147.3,147.27,9.33]
[1746576282238,144.48942113,147.29,147.27,9.33]
[1746576288759,144.48942113,147.29,147.24,23.59161352]
[1746576288941,137.7,147.28,147.24,23.59161352]
[1746576293163,26.0,147.3,147.24,40.57069529]
[1746576295658,26.0,147.31,147.24,40.57069529]
[1746576295969,6.78932717,147.29,147.24,23.59161352]
[1746576296156,25.43871074,147.3,147.24,23.59161352]
[1746576297261,137.7,147.29,147.24,23.59161352]
[1746576298989,144.4893625,147.29,147.24,23.59161352]
[1746576299471,137.7,147.29,147.24,23.59161352]
[1746576301066,137.7,147.28,147.24,23.59161352]
[1746576302074,18.64964886,147.27,147.24,16.8]
[1746576302247,137.7,147.28,147.24,16.8]
[1746576302678,137.7,147.28,147.24,23.59160042]
[1746576304376,144.48981018,147.28,147.24,16.8]
[1746576305677,137.7,147.28,147.24,23.59146624]
[1746576306055,144.48985266,147.28,147.24,16.8]
[1746576307053,137.7,147.28,147.24,23.59150792]
[1746576309164,137.7,147.28,147.24,40.57058969]
[1746576309363,137.7,147.31,147.24,42.08438969]
[1746576311479,18.64964886,147.3,147.24,25.10530792]
[1746576312080,137.7,147.29,147.24,23.59150792]
[1746576313983,144.48945237,147.29,147.24,23.59150792]
[1746576315078,137.7,147.28,147.24,23.59150792]
[1746576316577,144.48984402,147.28,147.24,16.8]
[1746576317582,144.48984402,147.28,147.22,23.45255535]
[1746576317956,137.7,147.28,147.22,40.43394374]
[1746576323879,137.7,147.32,147.23,26.14216157]
[1746576324181,137.7,147.31,147.23,26.14216157]
[1746576327186,137.7,147.31,147.24,23.77071447]
[1746576328686,137.7,147.31,147.25,0.14216157]
[1746576328897,137.7,147.31,147.26,16.66]
[1746576329196,137.7,147.31,147.28,6.78978815]
[1746576333198,26.0,147.34,147.28,23.76425854]
[1746576334100,137.7,147.35,147.29,0.14216157]
[1746576335994,137.7,147.35,147.28,6.78978815]
[1746576336291,144.4867475,147.35,147.28,6.78978815]
[1746576336994,137.7,147.35,147.28,23.76425854]
[1746576342472,144.48656975,147.35,147.28,23.76425854]
[1746576343481,144.48656975,147.35,147.28,40.42425854]
[1746576343884,144.48656975,147.35,147.28,23.44978815]
[1746576345099,137.7,147.34,147.28,23.44978815]
[1746576345403,137.7,147.34,147.28,40.42425854]
[1746576345600,137.7,147.34,147.29,0.14216157]
[1746576347697,137.7,147.34,147.3,6.78886625]
[1746576348595,137.7,147.34,147.3,23.76103189]
[1746576351105,137.7,147.37,147.3,23.76103189]
[1746576351287,144.48579321,147.37,147.3,23.76103189]
[1746576351681,137.7,147.37,147.3,23.76103189]
[1746576353710,137.7,147.37,147.32,6.78794461]
[1746576362231,137.7,147.37,147.32,23.75780613]
[1746576362517,137.7,147.36,147.3,6.78886625]
[1746576362822,156.34964886,147.35,147.29,23.42923478]
[1746576363113,137.7,147.34,147.29,16.64]
[1746576363830,156.34964886,147.33,147.25,16.64]
[1746576364028,18.64964886,147.31,147.25,23.43101607]
[1746576364195,25.43812775,147.31,147.25,23.43101607]
[1746576367695,144.48893507,147.3,147.25,23.43101607]
[1746576367896,137.7,147.29,147.25,16.64]
[1746576368330,18.64964886,147.28,147.22,6.79237024]
[1746576368621,137.7,147.27,147.22,6.79237024]
[1746576370302,163.7,147.27,147.22,6.79237024]
[1746576371333,170.49028776,147.27,147.22,6.79237024]
[1746576371919,163.7,147.27,147.22,6.79237024]
[1746576372098,137.7,147.26,147.22,6.79237024]
[1746576373003,137.7,147.25,147.21,23.43285241]
[1746576373203,137.7,147.24,147.21,23.43285241]
[1746576377004,137.7,147.24,147.21,16.64]
[1746576377205,137.7,147.24,147.21,23.43293]
[1746576377403,137.7,147.24,147.21,16.64]
[1746576377835,137.7,147.23,147.21,16.64]
[1746576378127,137.7,147.23,147.17,16.84]
[1746576378327,137.7,147.22,147.17,16.84]
[1746576378807,137.7,147.22,147.18,6.79411719]
[1746576379205,6.79213575,147.23,147.17,23.63468308]
[1746576379206,26.0,147.2,147.17,23.63468308]
[1746576379420,137.7,147.19,147.17,16.84]
[1746576379731,137.7,147.19,147.17,23.63474024]
[1746576381226,137.7,147.19,147.17,16.84]
[1746576383314,137.7,147.18,147.17,16.84]
[1746576383507,44.64964886,147.19,147.12,6.3]
[1746576383712,44.64964886,147.19,147.13,16.86]
[1746576383929,46.28004886,147.19,147.13,16.86]
[1746576384918,46.28004886,147.19,147.08,46.69284678]
[1746576384919,0.14216157,147.18,147.08,46.69284678]
[1746576385340,26.0,147.13,147.08,29.79284678]
[1746576386920,26.0,147.13,147.08,6.79894678]
[1746576387233,26.0,147.09,147.08,16.86]
[1746576387632,26.0,147.11,147.06,6.79990101]
[1746576389351,26.0,147.11,147.05,23.80132111]
[1746576390262,25.44488533,147.17,147.06,0.14216157]
[1746576390545,26.0,147.14,147.07,1.5899]
[1746576390746,26.0,147.14,147.08,17.04]
[1746576390960,26.0,147.14,147.09,16.86]
[1746576391448,26.0,147.14,147.1,6.79809653]
[1746576391638,137.7,147.13,147.1,23.79333786]
[1746576396965,26.0,147.15,147.1,23.79333786]
[1746576397133,26.0,147.14,147.1,6.79809653]
[1746576397331,6.79541586,147.16,147.09,23.65842304]
[1746576397651,137.7,147.15,147.09,23.65842304]
[1746576398245,18.64964886,147.14,147.09,16.86]
[1746576398862,137.7,147.13,147.07,6.79941047]
[1746576399431,170.49697874,147.13,147.06,6.7999456]
[1746576400044,26.0,147.1,147.06,6.7999456]
[1746576401670,26.0,147.12,147.06,6.7999456]
[1746576403672,32.79753371,147.12,147.06,6.7999456]
[1746576404862,26.0,147.1,147.06,6.7999456]
[1746576405059,137.7,147.09,147.06,6.7999456]
[1746576406939,137.7,147.08,147.05,278.44023289]
[1746576407649,137.7,147.07,147.05,278.44023289]
[1746576407848,137.7,147.06,147.05,23.66023289]
[1746576408277,32.79819742,147.1,147.05,16.86]
[1746576408563,26.0,147.08,147.05,16.86]
[1746576410065,26.0,147.08,147.05,23.66029814]
[1746576412769,26.0,147.08,147.05,16.86]
[1746576413268,26.0,147.08,147.01,6.1313]
[1746576413269,137.7,147.07,147.01,17.04]
[1746576413469,137.7,147.06,147.01,17.04]
[1746576413849,26.0,147.02,146.98,17.04]
[1746576414051,137.7,147.01,146.98,23.84364675]
[1746576414266,137.7,147.0,146.98,17.04]
[1746576414756,137.7,146.99,146.98,17.04]